bitfinex-derivatives/quotes_BTCF0:USTF0_20250510
["timestamp","ask_amount","ask_price","bid_price","bid_amount"]
[1746901107222,0.80727189,103340.0,103330.0,0.93090933]
[1746901107426,0.92922315,103340.0,103330.0,0.93090933]
[1746901108227,1.05117441,103340.0,103330.0,0.93090933]
[1746901109731,1.11197441,103340.0,103330.0,0.93090933]
[1746901112532,0.91197441,103340.0,103330.0,0.93090933]
[1746901112723,0.97707441,103340.0,103330.0,0.93090933]
[1746901114636,0.97707441,103340.0,103330.0,0.57010933]
[1746901114829,1.10707441,103340.0,103330.0,0.57010933]
[1746901115029,1.10707441,103340.0,103330.0,0.37658383]
[1746901115229,1.10707441,103340.0,103330.0,0.57010933]
[1746901115430,1.10707441,103340.0,103330.0,0.37658383]
[1746901116134,1.10707441,103340.0,103330.0,0.31318383]
[1746901116339,1.46787441,103340.0,103330.0,0.25348383]
[1746901117241,1.46787441,103340.0,103330.0,0.08748383]
[1746901118035,1.10707441,103340.0,103330.0,0.08748383]
[1746901118245,1.46787441,103340.0,103330.0,0.08748383]
[1746901118844,1.10707441,103340.0,103330.0,0.08748383]
[1746901119639,1.46787441,103340.0,103330.0,0.08748383]
[1746901119839,1.10707441,103340.0,103330.0,0.08748383]
[1746901120342,1.10707441,103340.0,103330.0,0.28100933]
[1746901120544,1.10707441,103340.0,103330.0,0.64180933]
[1746901121244,1.10707441,103340.0,103330.0,0.44700933]
[1746901123246,1.10707441,103340.0,103330.0,0.50650933]
[1746901126747,0.82940315,103340.0,103330.0,0.86730933]
[1746901126953,0.44455806,103340.0,103330.0,1.33730933]
[1746901127144,0.47337806,103340.0,103330.0,1.33730933]
[1746901131951,0.1965068,103340.0,103330.0,1.33730933]
[1746901132166,0.31845806,103340.0,103330.0,1.33730933]
[1746901132351,0.003,103340.0,103330.0,1.45926059]
[1746901132657,0.1965068,103340.0,103330.0,1.45926059]
[1746901132953,0.1965068,103340.0,103330.0,1.4687301]
[1746901133349,0.1965068,103340.0,103330.0,1.34677884]
[1746901134155,0.003,103340.0,103330.0,1.4687301]
[1746901134345,0.003,103340.0,103330.0,1.6932401]
[1746901134541,0.003,103340.0,103330.0,2.29166473]
[1746901134742,0.253453,103370.0,103360.0,0.1934694]
[1746901134951,0.253453,103370.0,103360.0,0.7042694]
[1746901134952,0.70897096,103370.0,103360.0,0.7042694]
[1746901135151,0.76997096,103370.0,103360.0,0.8702694]
[1746901135454,0.76997096,103370.0,103360.0,0.9936694]
[1746901135651,0.76997096,103370.0,103360.0,0.99515323]
[1746901135853,0.6480197,103370.0,103360.0,0.99515323]
[1746901136056,0.76997096,103370.0,103360.0,0.99515323]
[1746901136357,0.78156532,103370.0,103360.0,0.99515323]
[1746901136555,0.78556532,103370.0,103360.0,0.80268383]
[1746901136849,1.19751658,103370.0,103360.0,0.32798383]
[1746901137054,1.55831658,103370.0,103360.0,0.32798383]
[1746901137256,1.55831658,103370.0,103360.0,0.52145323]
[1746901137654,1.55831658,103370.0,103360.0,0.26848383]
[1746901137958,1.55831658,103370.0,103360.0,0.16848383]
[1746901138152,1.55831658,103370.0,103360.0,0.00248383]
[1746901138549,1.55831658,103370.0,103360.0,0.06258383]
[1746901140658,1.31441406,103370.0,103360.0,0.06258383]
[1746901140861,1.55831658,103370.0,103360.0,0.06258383]
[1746901144957,0.1935068,103340.0,103330.0,0.45229426]
[1746901145264,0.55740932,103340.0,103330.0,1.08181976]
[1746901145464,0.49525806,103340.0,103330.0,1.08181976]
[1746901145760,0.61720932,103340.0,103330.0,1.08181976]
[1746901146153,0.61820932,103340.0,103330.0,1.08481976]
[1746901146354,0.68030932,103340.0,103330.0,1.15011976]
[1746901147064,0.4364068,103340.0,103330.0,1.15011976]
[1746901147263,0.74835806,103340.0,103330.0,1.15011976]
[1746901147566,0.50835806,103340.0,103330.0,1.15011976]
[1746901148262,0.50835806,103340.0,103330.0,1.15114834]
[1746901148868,0.50835806,103340.0,103330.0,1.1514912]
[1746901149164,0.3864068,103340.0,103330.0,1.1514912]
[1746901149367,0.50835806,103340.0,103330.0,1.1514912]
[1746901149870,0.3864068,103340.0,103330.0,1.1514912]
[1746901150166,0.50835806,103340.0,103330.0,1.1514912]
[1746901150461,0.50835806,103340.0,103330.0,1.15011976]
[1746901150667,0.50835806,103340.0,103330.0,1.15183406]
[1746901151565,0.50835806,103340.0,103330.0,1.15217692]
[1746901152767,0.50835806,103340.0,103330.0,1.15251978]
[1746901152969,0.63030932,103340.0,103330.0,1.15251978]
[1746901153263,0.50835806,103340.0,103330.0,1.15251978]
[1746901153567,0.63030932,103340.0,103330.0,1.15251978]
[1746901153870,0.50835806,103340.0,103330.0,1.15251978]
[1746901154765,0.63030932,103340.0,103330.0,1.15251978]
[1746901154965,0.63030932,103340.0,103330.0,1.13638708]
[1746901156573,0.64030932,103340.0,103330.0,1.13638708]
[1746901157073,0.51835806,103340.0,103330.0,1.13638708]
[1746901157572,0.3964068,103340.0,103330.0,1.13638708]
[1746901157971,0.51835806,103340.0,103330.0,1.13638708]
[1746901159067,0.39645806,103340.0,103330.0,1.13638708]
[1746901160069,0.46165806,103340.0,103330.0,1.13638708]
[1746901161073,0.2745068,103340.0,103330.0,1.13638708]
[1746901161273,0.39645806,103340.0,103330.0,1.19958708]
[1746901162471,0.45715806,103340.0,103330.0,1.19958708]
[1746901165380,0.39645806,103340.0,103330.0,1.19958708]
[1746901165878,0.51840932,103340.0,103330.0,1.13638708]
[1746901166070,1.16234932,103340.0,103330.0,0.61346158]
[1746901166379,1.79898058,103340.0,103330.0,0.01085158]
[1746901166677,1.67702932,103340.0,103330.0,0.01085158]
[1746901171582,1.69142237,103340.0,103330.0,0.01085158]
[1746901177290,1.69142237,103340.0,103330.0,0.07145158]
[1746901178288,1.81337363,103340.0,103330.0,0.01085158]
[1746901181996,1.69142237,103340.0,103330.0,0.01085158]
[1746901182486,1.69142237,103340.0,103330.0,0.07235158]
[1746901182798,1.85202237,103340.0,103330.0,0.07235158]
[1746901187099,1.85202237,103340.0,103330.0,0.13635158]
[1746901188795,1.85202237,103340.0,103330.0,0.19995158]
[1746901189001,1.54450237,103340.0,103330.0,0.19995158]
[1746901189193,1.85042237,103340.0,103330.0,0.19995158]
[1746901189497,1.54450237,103340.0,103330.0,0.39347708]
[1746901189705,1.69746237,103340.0,103330.0,0.39347708]
[1746901189998,1.85042237,103340.0,103330.0,0.39347708]
[1746901192505,1.68982237,103340.0,103330.0,0.19995158]
[1746901192705,1.68982237,103340.0,103330.0,0.19595158]
[1746901192906,1.68882237,103340.0,103330.0,0.38947708]
[1746901193602,1.68882237,103340.0,103330.0,0.38847708]
[1746901193805,1.68882237,103340.0,103330.0,0.38947708]
[1746901195505,1.68882237,103340.0,103330.0,0.19595158]
[1746901197508,1.68882237,103340.0,103330.0,0.19495158]
[1746901197706,1.69082237,103340.0,103330.0,0.19595158]
[1746901198412,1.44691985,103340.0,103330.0,0.19595158]
[1746901198610,1.69082237,103340.0,103330.0,0.38947708]
[1746901198922,1.81277363,103340.0,103330.0,0.13035158]
[1746901199415,1.69082237,103340.0,103330.0,0.13035158]
[1746901199611,1.69082237,103340.0,103330.0,0.13235158]
[1746901199812,1.68882237,103340.0,103330.0,0.13235158]
[1746901200013,1.68882237,103340.0,103330.0,0.13035158]
[1746901200612,1.69082237,103340.0,103330.0,0.13035158]
[1746901204623,1.81277363,103340.0,103330.0,0.13035158]
[1746901204815,1.81277363,103340.0,103330.0,0.06635158]
[1746901205123,1.69082237,103340.0,103330.0,0.06635158]
[1746901209926,1.44691985,103340.0,103330.0,0.06635158]
[1746901210126,1.69082237,103340.0,103330.0,0.06635158]
[1746901210324,1.69082237,103340.0,103330.0,0.12815158]
[1746901221533,1.69082237,103340.0,103330.0,0.06635158]
[1746901222029,1.81277363,103340.0,103330.0,0.06635158]
[1746901223430,1.81277363,103340.0,103330.0,0.001]
[1746901223634,0.193563,103310.0,103300.0,0.01451]
[1746901223828,0.96938552,103310.0,103300.0,0.07451]
[1746901224029,1.15688552,103310.0,103300.0,0.06]
[1746901224432,1.15688552,103310.0,103300.0,0.03]
[1746901224932,1.15788552,103310.0,103300.0,0.034]
[1746901225134,0.1935817,103300.0,103290.0,0.00396922]
[1746901225440,0.93228422,103300.0,103290.0,0.03396922]
[1746901226544,0.93328422,103300.0,103290.0,0.03796922]
[1746901226837,0.93328422,103300.0,103290.0,0.10106922]
[1746901227629,0.93328422,103300.0,103290.0,0.16146922]
[1746901227831,0.93428422,103300.0,103290.0,0.16646922]
[1746901228136,1.08628422,103300.0,103290.0,0.16646922]
[1746901229533,1.08604422,103300.0,103290.0,0.16646922]
[1746901230238,1.08604422,103300.0,103290.0,0.52606972]
[1746901230438,1.08604422,103300.0,103290.0,0.88686972]
[1746901231532,1.08604422,103300.0,103290.0,0.52606972]
[1746901232036,1.08604422,103300.0,103290.0,0.88686972]
[1746901236646,1.08604422,103300.0,103290.0,0.52606972]
[1746901236841,1.08604422,103300.0,103290.0,0.88686972]
[1746901237138,1.0027417,103300.0,103290.0,0.88686972]
[1746901237343,1.08604422,103300.0,103290.0,0.88686972]
[1746901239143,1.08604422,103300.0,103290.0,0.52606972]
[1746901239443,1.44684422,103300.0,103290.0,0.27206922]
[1746901240145,1.44684422,103300.0,103290.0,0.10606922]
[1746901244440,1.2029417,103300.0,103290.0,0.10606922]
[1746901244651,1.44684422,103300.0,103290.0,0.10606922]
[1746901245149,1.08604422,103300.0,103290.0,0.46686922]
[1746901245337,1.08604422,103300.0,103290.0,0.66046972]
[1746901245848,1.08604422,103300.0,103290.0,0.46686922]
[1746901246046,1.08604422,103300.0,103290.0,0.10606922]
[1746901246442,1.12674422,103300.0,103290.0,0.10606922]
[1746901247151,1.12874422,103300.0,103290.0,0.10206922]
[1746901247343,1.12874422,103300.0,103290.0,0.29566972]
[1746901247744,1.12774422,103300.0,103290.0,0.29066972]
[1746901248046,1.12574422,103300.0,103290.0,0.29266972]
[1746901248952,0.8818417,103300.0,103290.0,0.65346972]
[1746901249153,1.12574422,103300.0,103290.0,0.65346972]
[1746901249345,1.12574422,103300.0,103290.0,0.09906922]
[1746901251153,1.48654422,103300.0,103290.0,0.09906922]
[1746901251361,1.48654422,103300.0,103290.0,0.03596922]
[1746901254771,1.48654422,103300.0,103290.0,0.07576922]
[1746901255644,1.12574422,103300.0,103290.0,0.07576922]
[1746901256449,1.48654422,103300.0,103290.0,0.07576922]
[1746901257057,1.48654422,103300.0,103290.0,0.03596922]
[1746901258054,1.48654422,103300.0,103290.0,0.07246922]
[1746901263354,1.48654422,103300.0,103290.0,0.03596922]
[1746901264861,1.12574422,103300.0,103290.0,0.03596922]
[1746901265056,1.48654422,103300.0,103290.0,0.03596922]
[1746901267165,1.64714422,103300.0,103290.0,0.03596922]
[1746901270467,1.28634422,103300.0,103290.0,0.03596922]
[1746901270765,1.64714422,103300.0,103290.0,0.03596922]
[1746901271158,1.64714422,103300.0,103290.0,0.06796922]
[1746901272254,1.48654422,103300.0,103290.0,0.06796922]
[1746901275571,1.63778422,103300.0,103290.0,0.06796922]
[1746901279167,1.33478422,103300.0,103290.0,0.06796922]
[1746901279374,0.371,103300.0,103290.0,0.91236972]
[1746901279667,0.371,103300.0,103290.0,0.96446972]
[1746901279668,0.80848422,103300.0,103290.0,0.96446972]
[1746901279871,0.90108422,103300.0,103290.0,0.45096922]
[1746901280176,1.26188422,103300.0,103290.0,0.07248922]
[1746901280470,1.53507548,103300.0,103290.0,0.07248922]
[1746901280674,1.53507548,103300.0,103290.0,0.01]
[1746901280970,0.1936005,103290.0,103280.0,0.0323]
[1746901281172,0.1936192,103280.0,103270.0,0.3608]
[1746901281470,1.37146172,103280.0,103270.0,0.16]
[1746901282371,1.53206172,103280.0,103270.0,0.16]
[1746901282780,1.53306172,103280.0,103270.0,0.165]
[1746901283072,1.53274172,103280.0,103270.0,0.358638]
[1746901283377,1.53274172,103280.0,103270.0,0.387238]
[1746901284371,1.53274172,103280.0,103270.0,0.418838]
[1746901284781,1.53374172,103280.0,103270.0,0.418838]
[1746901285280,1.17294172,103280.0,103270.0,0.779638]
[1746901287181,1.01234172,103280.0,103270.0,0.779638]
[1746901289987,0.7684392,103280.0,103270.0,0.779638]
[1746901290282,0.89039046,103280.0,103270.0,0.779638]
[1746901291088,0.89039046,103280.0,103270.0,0.945638]
[1746901291282,0.89039046,103280.0,103270.0,0.965538]
[1746901292392,0.6175192,103280.0,103270.0,0.965538]
[1746901292597,0.89031046,103280.0,103270.0,0.965538]
[1746901297590,0.89031046,103280.0,103270.0,0.945638]
[1746901301403,0.88931046,103280.0,103270.0,0.945638]
[1746901301610,0.89031046,103280.0,103270.0,0.945638]
[1746901301808,1.01226172,103280.0,103270.0,0.915038]
[1746901302101,1.01226172,103280.0,103270.0,0.749038]
[1746901302305,1.01126172,103280.0,103270.0,0.746038]
[1746901302600,1.01226172,103280.0,103270.0,0.750038]
[1746901302800,0.89031046,103280.0,103270.0,0.750038]
[1746901303004,0.89031046,103280.0,103270.0,0.749038]
[1746901303300,0.89031046,103280.0,103270.0,0.915038]
[1746901303892,1.01226172,103280.0,103270.0,0.915038]
[1746901304094,0.89031046,103280.0,103270.0,0.749038]
[1746901304704,1.01226172,103280.0,103270.0,0.749038]
[1746901305403,1.01226172,103280.0,103270.0,0.750038]
[1746901305602,1.37306172,103280.0,103270.0,0.164]
[1746901305998,1.49501298,103280.0,103270.0,0.1141]
[1746901306196,0.193638,103270.0,103260.0,0.00397037]
[1746901306401,1.06818926,103270.0,103260.0,0.05397037]
[1746901306702,1.06818926,103270.0,103260.0,0.06869394]
[1746901307407,1.06918926,103270.0,103260.0,0.06969394]
[1746901308297,0.70838926,103270.0,103260.0,0.43049394]
[1746901308493,0.70838926,103270.0,103260.0,0.62815064]
[1746901308494,0.70938926,103270.0,103260.0,0.62815064]
[1746901308805,0.86006926,103270.0,103260.0,0.62815064]
[1746901308998,0.86006926,103270.0,103260.0,0.66145064]
[1746901309201,0.89186926,103270.0,103260.0,0.66145064]
[1746901312609,0.89086926,103270.0,103260.0,0.66045064]
[1746901312911,0.89186926,103270.0,103260.0,0.66045064]
[1746901313410,0.89086926,103270.0,103260.0,0.65945064]
[1746901313709,0.89186926,103270.0,103260.0,0.65945064]
[1746901317505,0.89186926,103270.0,103260.0,0.29865064]
[1746901317701,0.89186926,103270.0,103260.0,0.65945064]
[1746901323119,1.05246926,103270.0,103260.0,0.65945064]
[1746901327308,0.89186926,103270.0,103260.0,0.65945064]
[1746901330415,0.89186926,103270.0,103260.0,0.29865064]
[1746901330718,1.25266926,103270.0,103260.0,0.07169394]
[1746901330911,1.37462052,103270.0,103260.0,0.07169394]
[1746901332512,1.01382052,103270.0,103260.0,0.07169394]
[1746901333018,1.01782052,103270.0,103260.0,0.07169394]
[1746901333715,1.01582052,103270.0,103260.0,0.07169394]
[1746901333915,1.37562052,103270.0,103260.0,0.06869394]
[1746901334116,1.37862052,103270.0,103260.0,0.06969394]
[1746901334514,1.37562052,103270.0,103260.0,0.06869394]
[1746901334715,1.37662052,103270.0,103260.0,0.06969394]
[1746901336219,1.54262052,103270.0,103260.0,0.06969394]
[1746901337220,1.37662052,103270.0,103260.0,0.06969394]
[1746901346231,0.1936755,103250.0,103240.0,0.00966]
[1746901346425,1.46857802,103250.0,103240.0,0.01966]
[1746901346624,1.56557802,103250.0,103240.0,0.01]
[1746901347823,1.56657802,103250.0,103240.0,0.012]
[1746901348018,1.57624549,103250.0,103240.0,0.012]
[1746901348426,1.57724549,103250.0,103240.0,0.012]
[1746901352621,0.91624549,103250.0,103240.0,0.012]
[1746901352827,1.57716549,103250.0,103240.0,0.012]
[1746901353332,1.21636549,103250.0,103240.0,0.012]
[1746901354130,1.57716549,103250.0,103240.0,0.012]
[1746901354333,1.57716549,103250.0,103240.0,0.002]
[1746901354529,1.21636549,103250.0,103240.0,0.002]
[1746901354924,1.57716549,103250.0,103240.0,0.002]
[1746901355528,1.27704549,103250.0,103240.0,0.002]
[1746901355733,1.45517423,103250.0,103240.0,0.002]
[1746901355934,1.45517423,103250.0,103240.0,0.0323]
[1746901356135,1.45617423,103250.0,103240.0,0.0303]
[1746901356433,1.45717423,103250.0,103240.0,0.0313]
[1746901356729,1.45617423,103250.0,103240.0,0.0313]
[1746901356926,1.45717423,103250.0,103240.0,0.0313]
[1746901357333,1.45717423,103250.0,103240.0,0.0645]
[1746901357934,1.09637423,103250.0,103240.0,0.0645]
[1746901359834,0.79629423,103250.0,103240.0,0.0645]
[1746901360035,1.09633423,103250.0,103240.0,0.0645]
[1746901362128,1.09633423,103250.0,103240.0,0.0947]
[1746901362741,1.25713423,103250.0,103240.0,0.0947]
[1746901362933,0.82446297,103250.0,103240.0,0.2983942]
[1746901363134,1.06449423,103250.0,103240.0,0.4643942]
[1746901364032,0.94254297,103250.0,103240.0,0.4643942]
[1746901364237,1.06449423,103250.0,103240.0,0.4643942]
[1746901364425,0.4775155,103250.0,103240.0,0.8951942]
[1746901364923,0.63096676,103250.0,103240.0,0.90995262]
[1746901365436,0.66166676,103250.0,103240.0,0.90995262]
[1746901366026,0.66166676,103250.0,103240.0,1.11995262]
[1746901366336,0.84166676,103250.0,103240.0,1.11995262]
[1746901367637,0.7197155,103250.0,103240.0,1.11995262]
[1746901367839,0.84166676,103250.0,103240.0,1.11995262]
[1746901368837,0.7197155,103250.0,103240.0,1.11995262]
[1746901369044,0.84166676,103250.0,103240.0,1.11995262]
[1746901370045,0.7197155,103250.0,103240.0,1.11995262]
[1746901370243,0.2698755,103250.0,103240.0,1.31190388]
[1746901370448,0.004,103250.0,103240.0,1.32190388]
[1746901370744,0.1976755,103250.0,103240.0,1.32190388]
[1746901371445,0.1976755,103250.0,103240.0,1.19995262]
[1746901371838,0.2281755,103250.0,103240.0,1.19995262]
[1746901372247,0.35012676,103250.0,103240.0,1.19995262]
[1746901372552,0.38232676,103250.0,103240.0,1.12995262]
[1746901373050,0.2603755,103250.0,103240.0,1.12995262]
[1746901373350,0.38232676,103250.0,103240.0,1.12995262]
[1746901373651,0.38232676,103250.0,103240.0,1.13995262]
[1746901373850,0.2603755,103250.0,103240.0,1.13995262]
[1746901376251,0.2603755,103250.0,103240.0,1.34995262]
[1746901376449,0.2603755,103250.0,103240.0,1.47190388]
[1746901376846,0.2603755,103250.0,103240.0,1.34995262]
[1746901377249,0.38232676,103250.0,103240.0,1.34995262]
[1746901378054,0.41322676,103250.0,103240.0,1.34995262]
[1746901378354,0.41322676,103250.0,103240.0,1.12995262]
[1746901381357,0.2912755,103250.0,103240.0,1.12995262]
[1746901382253,0.2912755,103250.0,103240.0,1.09975262]
[1746901383454,0.41322676,103250.0,103240.0,1.09975262]
[1746901385342,0.2912755,103250.0,103240.0,1.09975262]
[1746901385742,0.2912755,103250.0,103240.0,1.13175262]
[1746901386660,0.41322676,103250.0,103240.0,1.13175262]
[1746901386961,0.41322676,103250.0,103240.0,1.09975262]
[1746901387255,0.64322676,103250.0,103240.0,1.06655262]
[1746901388256,0.5212755,103250.0,103240.0,1.06655262]
[1746901388452,0.64322676,103250.0,103240.0,1.06655262]
[1746901390357,0.64322676,103250.0,103240.0,1.07621262]
[1746901391045,0.5212755,103250.0,103240.0,1.07621262]
[1746901391249,0.5212755,103250.0,103240.0,0.91021262]
[1746901391250,0.64322676,103250.0,103240.0,0.91021262]
[1746901392153,0.64322676,103250.0,103240.0,1.07621262]
[1746901393155,0.64322676,103250.0,103240.0,0.91021262]
[1746901394160,0.64322676,103250.0,103240.0,1.07621262]
[1746901395159,0.64322676,103250.0,103240.0,0.91021262]
[1746901397052,0.64322676,103250.0,103240.0,0.94281262]
[1746901397356,0.64322676,103250.0,103240.0,1.10881262]
[1746901397965,0.64322676,103250.0,103240.0,1.07621262]
[1746901398165,0.64322676,103250.0,103240.0,0.91021262]
[1746901399064,0.64322676,103250.0,103240.0,1.07621262]
[1746901401061,0.64322676,103250.0,103240.0,0.91021262]
[1746901401872,0.64322676,103250.0,103240.0,0.54941262]
[1746901402058,0.64322676,103250.0,103240.0,1.27101262]
[1746901406077,0.64322676,103250.0,103240.0,0.54941262]
[1746901406281,0.64322676,103250.0,103240.0,1.27101262]
[1746901410381,0.64322676,103250.0,103240.0,1.30181262]
[1746901411881,0.64322676,103250.0,103240.0,0.58021262]
[1746901412077,0.64322676,103250.0,103240.0,0.94101262]
[1746901417380,0.5212755,103250.0,103240.0,0.94101262]
[1746901417679,0.64322676,103250.0,103240.0,0.94101262]
[1746901419684,0.5212755,103250.0,103240.0,0.94101262]
[1746901419987,0.64322676,103250.0,103240.0,0.94101262]
[1746901420588,0.64322676,103250.0,103240.0,0.58021262]
[1746901420778,0.64322676,103250.0,103240.0,0.94101262]
[1746901421388,0.64322676,103250.0,103240.0,0.58021262]
[1746901421589,0.64322676,103250.0,103240.0,0.94101262]
[1746901423391,0.64322676,103250.0,103240.0,0.58021262]
[1746901423590,0.64322676,103250.0,103240.0,0.94101262]
[1746901423890,0.64322676,103250.0,103240.0,0.91021262]
[1746901424292,0.64322676,103250.0,103240.0,0.90055262]
[1746901426390,0.41322676,103250.0,103240.0,0.93055262]
[1746901428997,0.41322676,103250.0,103240.0,0.90055262]
[1746901434295,0.76322676,103250.0,103240.0,0.90055262]
[1746901436497,0.76322676,103250.0,103240.0,0.93285262]
[1746901439497,0.76322676,103250.0,103240.0,0.87025262]
[1746901439701,0.76322676,103250.0,103240.0,0.50945262]
[1746901440200,0.76322676,103250.0,103240.0,0.64025262]
[1746901440396,0.76322676,103250.0,103240.0,0.08575842]
[1746901440607,0.88517802,103250.0,103240.0,0.07575842]
[1746901440792,1.24597802,103250.0,103240.0,0.07575842]
[1746901441095,1.41197802,103250.0,103240.0,0.07575842]
[1746901441899,1.29002676,103250.0,103240.0,0.07575842]
[1746901442200,1.29002676,103250.0,103240.0,0.061]
[1746901445098,1.41197802,103250.0,103240.0,0.061]
[1746901445399,1.29002676,103250.0,103240.0,0.061]
[1746901446906,0.92922676,103250.0,103240.0,0.061]
[1746901447201,1.29002676,103250.0,103240.0,0.061]
[1746901449104,1.12402676,103250.0,103240.0,0.061]
[1746901451506,1.06030676,103250.0,103240.0,0.061]
[1746901452400,1.42110676,103250.0,103240.0,0.061]
[1746901452904,1.06430676,103250.0,103240.0,0.06]
[1746901455509,1.42510676,103250.0,103240.0,0.06]
[1746901457315,1.58590676,103250.0,103240.0,0.06]
[1746901458010,1.22510676,103250.0,103240.0,0.06]
[1746901458910,1.1031555,103250.0,103240.0,0.06]
[1746901459105,1.06414676,103250.0,103240.0,0.8004942]
[1746901459309,1.06414676,103250.0,103240.0,0.8436942]
[1746901459510,1.06414676,103250.0,103240.0,0.65]
[1746901460206,1.06414676,103250.0,103240.0,0.6187]
[1746901460812,1.06414676,103250.0,103240.0,0.2579]
[1746901462013,1.18609802,103250.0,103240.0,0.226]
[1746901462205,1.54689802,103250.0,103240.0,0.06]
[1746901463514,1.3029955,103250.0,103240.0,0.06]
[1746901463811,1.42494676,103250.0,103240.0,0.09]
[1746901464500,1.42494676,103250.0,103240.0,0.03]
[1746901465509,0.1936942,103240.0,103230.0,0.67788245]
[1746901465709,0.75984546,103240.0,103230.0,1.01788245]
[1746901466105,0.75984546,103240.0,103230.0,1.18388245]
[1746901467214,0.76284546,103240.0,103230.0,1.18388245]
[1746901467516,0.76384546,103240.0,103230.0,1.18388245]
[1746901470012,0.91184546,103240.0,103230.0,1.18388245]
[1746901470918,0.7898942,103240.0,103230.0,1.18388245]
[1746901471109,0.91184546,103240.0,103230.0,1.01788245]
[1746901471820,1.03379672,103240.0,103230.0,0.93735425]
[1746901472421,1.03379672,103240.0,103230.0,0.90605425]
[1746901473121,1.03379672,103240.0,103230.0,0.93685425]
[1746901475017,0.7898942,103240.0,103230.0,0.93685425]
[1746901475225,1.03379672,103240.0,103230.0,0.93685425]
[1746901475523,0.7898942,103240.0,103230.0,0.93685425]
[1746901475822,0.91184546,103240.0,103230.0,0.96695425]
[1746901477226,0.91184546,103240.0,103230.0,1.13295425]
[1746901477826,1.03379672,103240.0,103230.0,1.10285425]
[1746901478215,1.03379672,103240.0,103230.0,0.93685425]
[1746901478617,0.91184546,103240.0,103230.0,0.93685425]
[1746901479024,0.91184546,103240.0,103230.0,0.57605425]
[1746901479326,0.66184546,103240.0,103230.0,0.93685425]
[1746901479527,0.66184546,103240.0,103230.0,0.96865425]
[1746901484826,0.66184546,103240.0,103230.0,0.97832425]
[1746901486618,0.5398942,103240.0,103230.0,0.97832425]
[1746901486817,0.66184546,103240.0,103230.0,0.97832425]
[1746901487028,0.51384546,103240.0,103230.0,0.97832425]
[1746901487220,0.104,103240.0,103230.0,1.48107551]
[1746901487527,0.1976942,103240.0,103230.0,1.90794188]
[1746901487927,0.1976942,103240.0,103230.0,1.78599062]
[1746901488136,0.2299942,103240.0,103230.0,1.95199062]
[1746901490925,0.2622942,103240.0,103230.0,1.95199062]
[1746901492527,0.2622942,103240.0,103230.0,1.23039062]
[1746901492735,0.2622942,103240.0,103230.0,1.95199062]
[1746901492927,0.2622942,103240.0,103230.0,2.07394188]
[1746901497038,0.2622942,103240.0,103230.0,1.35234188]
[1746901497337,0.2622942,103240.0,103230.0,2.07394188]
[1746901499437,0.2622942,103240.0,103230.0,1.95199062]
[1746901499736,0.2622942,103240.0,103230.0,2.07394188]
[1746901500331,0.2622942,103240.0,103230.0,1.95199062]
[1746901500737,0.2622942,103240.0,103230.0,2.07394188]
[1746901503237,0.2622942,103240.0,103230.0,1.95199062]
[1746901503537,0.2622942,103240.0,103230.0,2.07394188]
[1746901504238,0.2941942,103240.0,103230.0,1.95199062]
[1746901504633,0.2941942,103240.0,103230.0,2.07394188]
[1746901506540,0.2941942,103240.0,103230.0,1.89394188]
[1746901508840,0.2941942,103240.0,103230.0,1.77199062]
[1746901509034,0.2941942,103240.0,103230.0,1.89394188]
[1746901511341,0.2941942,103240.0,103230.0,1.77199062]
[1746901511542,0.2941942,103240.0,103230.0,1.89394188]
[1746901514543,0.2941942,103240.0,103230.0,1.77199062]
[1746901514842,0.2941942,103240.0,103230.0,1.89394188]
[1746901515640,0.0686,103240.0,103230.0,1.89394188]
[1746901515846,0.2265755,103250.0,103240.0,0.3389562]
[1746901516140,0.3486892,103260.0,103250.0,0.1936755]
[1746901516346,0.3815892,103260.0,103250.0,0.6382755]
[1746901516534,0.50354046,103260.0,103250.0,0.6382755]
[1746901516737,0.50354046,103260.0,103250.0,0.6479455]
[1746901516941,0.50354046,103260.0,103250.0,0.6449455]
[1746901517738,0.50654046,103260.0,103250.0,0.6128455]
[1746901518132,0.50654046,103260.0,103250.0,0.5418455]
[1746901518942,0.50754046,103260.0,103250.0,0.5428455]
[1746901519143,0.57154046,103260.0,103250.0,0.5428455]
[1746901522535,0.4495892,103260.0,103250.0,0.5428455]
[1746901522739,0.56177086,103260.0,103250.0,0.5428455]
[1746901524350,0.4398196,103260.0,103250.0,0.5428455]
[1746901526541,0.4498196,103260.0,103250.0,0.5428455]
[1746901527847,0.57177086,103260.0,103250.0,0.5103455]
[1746901529251,0.57177086,103260.0,103250.0,0.5417455]
[1746901531036,0.56177086,103260.0,103250.0,0.32067]
[1746901531242,0.99372212,103260.0,103250.0,0.22067]
[1746901531451,0.87177086,103260.0,103250.0,0.22067]
[1746901532042,0.87177086,103260.0,103250.0,0.4143455]
[1746901532443,0.7498196,103260.0,103250.0,0.4143455]
[1746901532651,0.7498196,103260.0,103250.0,0.4449455]
[1746901532652,0.87177086,103260.0,103250.0,0.4449455]
[1746901535151,0.87177086,103260.0,103250.0,0.25127]
[1746901536253,0.87177086,103260.0,103250.0,0.22067]
[1746901536659,0.87177086,103260.0,103250.0,0.4143455]
[1746901536951,0.87177086,103260.0,103250.0,0.4471455]
[1746901543452,1.01801086,103260.0,103250.0,0.4471455]
[1746901544460,0.8960196,103260.0,103250.0,0.4471455]
[1746901544649,1.01797086,103260.0,103250.0,0.4471455]
[1746901547256,1.01797086,103260.0,103250.0,0.4775455]
[1746901547458,0.8960196,103260.0,103250.0,0.4775455]
[1746901547661,1.01797086,103260.0,103250.0,0.4775455]
[1746901548261,0.8960196,103260.0,103250.0,0.4775455]
[1746901548663,1.01797086,103260.0,103250.0,0.4775455]
[1746901549557,0.70797086,103260.0,103250.0,0.4775455]
[1746901550259,0.5860196,103260.0,103250.0,0.4775455]
[1746901550455,0.70797086,103260.0,103250.0,0.4775455]
[1746901551763,0.70797086,103260.0,103250.0,0.5082455]
[1746901554050,0.56177086,103260.0,103250.0,0.5082455]
[1746901555361,0.56177086,103260.0,103250.0,0.6742455]
[1746901559763,0.56177086,103260.0,103250.0,0.6435455]
[1746901560166,0.56177086,103260.0,103250.0,0.4775455]
[1746901563467,0.56177086,103260.0,103250.0,0.4471455]
[1746901563661,0.61177086,103260.0,103250.0,0.4471455]
[1746901564464,1.04372212,103260.0,103250.0,0.20067]
[1746901564669,1.40452212,103260.0,103250.0,0.20067]
[1746901564968,1.55032212,103260.0,103250.0,0.191]
[1746901565160,1.71632212,103260.0,103250.0,0.191]
[1746901565358,2.18512138,103260.0,103250.0,0.191]
[1746901565669,0.1936942,103240.0,103230.0,0.02122455]
[1746901565869,0.1936942,103240.0,103230.0,0.32122455]
[1746901565870,0.6694142,103240.0,103230.0,0.32122455]
[1746901566064,0.88916546,103240.0,103230.0,0.33584563]
[1746901566372,1.01111672,103240.0,103230.0,0.33584563]
[1746901566555,0.7672142,103240.0,103230.0,0.33584563]
[1746901566761,0.88916546,103240.0,103230.0,0.52955863]